[Event "Titled Tuesday Blitz April 19 Early 2022"]
[White "Subaste, Arman"]
[Black "Demin, Vladimir"]
[WhiteFideId "5221080"]
[BlackFideId "4167457"]
[WhiteElo "1856"]
[BlackElo "2398"]
[Result "1-0"]
[Round "03"]
[TimeControl "180+1"]
[Date "2022.04.19"]
[WhiteClock "0:00:12"]
[BlackClock "0:00:04"]

1. d4 {[%clk 0:03:00]}  Nf6 {[%clk 0:02:59]} 2. Nf3 {[%clk 0:03:00]}  d5 {[%clk 0:02:59]} 3. c4 {[%clk 0:02:59]}  e6 {[%clk 0:02:59]} 4. g3 {[%clk 0:02:59]}  Be7 {[%clk 0:02:58]} 5. Bg2 {[%clk 0:02:59]}  O-O {[%clk 0:02:58]} 6. O-O {[%clk 0:03:00]}  dxc4 {[%clk 0:02:58]} 7. Qc2 {[%clk 0:02:59]}  b5 {[%clk 0:02:51]} 8. Ne5 {[%clk 0:02:49]}  Nd5 {[%clk 0:02:50]} 9. b3 {[%clk 0:02:38]}  cxb3 {[%clk 0:02:46]} 10. axb3 {[%clk 0:02:39]}  Bb7 {[%clk 0:02:44]} 11. Nc3 {[%clk 0:02:37]}  a6 {[%clk 0:02:32]} 12. e4 {[%clk 0:02:31]}  Nb4 {[%clk 0:02:26]} 13. Qd2 {[%clk 0:02:27]}  Nd7 {[%clk 0:02:24]} 14. Nxd7 {[%clk 0:02:16]}  Qxd7 {[%clk 0:02:25]} 15. d5 {[%clk 0:02:09]}  Rad8 {[%clk 0:02:17]} 16. Rd1 {[%clk 0:02:05]}  exd5 {[%clk 0:02:13]} 17. exd5 {[%clk 0:02:06]}  Rfe8 {[%clk 0:01:55]} 18. Bb2 {[%clk 0:01:58]}  Bf6 {[%clk 0:01:49]} 19. Ne4 {[%clk 0:01:31]}  Bxb2 {[%clk 0:01:47]} 20. Qxb2 {[%clk 0:01:32]}  Nxd5 {[%clk 0:01:44]} 21. Nc5 {[%clk 0:01:32]}  Qc6 {[%clk 0:01:42]} 22. b4 {[%clk 0:01:18]}  Qb6 {[%clk 0:01:26]} 23. Qb3 {[%clk 0:01:15]}  c6 {[%clk 0:01:25]} 24. Rd4 {[%clk 0:01:11]}  Bc8 {[%clk 0:01:19]} 25. Rad1 {[%clk 0:01:07]}  a5 {[%clk 0:00:55]} 26. Bxd5 {[%clk 0:01:02]}  cxd5 {[%clk 0:00:55]} 27. Rxd5 {[%clk 0:00:53]}  a4 {[%clk 0:00:49]} 28. Qc3 {[%clk 0:00:28]}  Rxd5 {[%clk 0:00:48]} 29. Rxd5 {[%clk 0:00:29]}  h6 {[%clk 0:00:44]} 30. Qd4 {[%clk 0:00:25]}  Bh3 {[%clk 0:00:39]} 31. f3 {[%clk 0:00:22]}  Qg6 {[%clk 0:00:35]} 32. Ne4 {[%clk 0:00:20]}  Qa6 {[%clk 0:00:28]} 33. Rd6 {[%clk 0:00:19]}  Qc8 {[%clk 0:00:25]} 34. Nc5 {[%clk 0:00:19]}  Re1+ {[%clk 0:00:17]} 35. Kf2 {[%clk 0:00:19]}  Qe8 {[%clk 0:00:15]} 36. Ne4 {[%clk 0:00:18]}  Rf1+ {[%clk 0:00:13]} 37. Ke3 {[%clk 0:00:18]}  Kh7 {[%clk 0:00:09]} 38. Qd5 {[%clk 0:00:16]}  f5 {[%clk 0:00:04]} 39. Rd8 {[%clk 0:00:16]}  Re1+ {[%clk 0:00:04]} 40. Kd2 {[%clk 0:00:16]}  Qe7 {[%clk 0:00:01]} 41. Kxe1 {[%clk 0:00:13]}  fxe4 {[%clk 0:00:01]} 42. Qxe4+ {[%clk 0:00:12]}  Qxe4+ {[%clk 0:00:01]} 43. fxe4 {[%clk 0:00:13]}  Be6 {[%clk 0:00:02]} 44. Kd2 {[%clk 0:00:11]}  Kg6 {[%clk 0:00:02]} 45. Rd6 {[%clk 0:00:11]}  Kf7 {[%clk 0:00:01]} 46. Rb6 {[%clk 0:00:11]}  Bc4 {[%clk 0:00:01]} 47. Kc3 {[%clk 0:00:11]}  a3 {[%clk 0:00:02]} 48. Ra6 {[%clk 0:00:12]}  a2 {[%clk 0:00:02]} 49. Kd4 {[%clk 0:00:12]}  h5 {[%clk 0:00:02]} 50. h4 {[%clk 0:00:12]}  Ke7 {[%clk 0:00:01]} 51. Ke5 {[%clk 0:00:12]}  Kf7 {[%clk 0:00:02]} 52. Kf5 {[%clk 0:00:12]}  Ke7 {[%clk 0:00:01]} 53. e5 {[%clk 0:00:11]}  Kd7 {[%clk 0:00:02]} 54. Kg5 {[%clk 0:00:12]}  Kc7 {[%clk 0:00:02]} 55. Kxh5 {[%clk 0:00:11]}  Kb7 {[%clk 0:00:02]} 56. Ra5 {[%clk 0:00:12]}  Kc6 {[%clk 0:00:03]} 57. Kg6 {[%clk 0:00:10]}  Kd5 {[%clk 0:00:03]} 58. Kxg7 {[%clk 0:00:11]}  Kxe5 {[%clk 0:00:04]} 59. h5 {[%clk 0:00:11]}  Kd4 {[%clk 0:00:04]} 60. h6 {[%clk 0:00:12]} 1-0


[Site "https://www.chess.com"]

[Event "Titled Tuesday Blitz April 19 Early 2022"]
[White "Swicarz, Maciej"]
[Black "Petrova, Irina"]
[WhiteFideId "1113585"]
[BlackFideId "14124122"]
[WhiteElo "2057"]
[BlackElo "1993"]
[Result "1-0"]
[Round "03"]
[TimeControl "180+1"]
[Date "2022.04.19"]
[WhiteClock "0:00:13"]
[BlackClock "0:00:01"]

1. e4 {[%clk 0:03:00]}  c5 {[%clk 0:02:58]} 2. Nc3 {[%clk 0:02:57]}  Nc6 {[%clk 0:02:58]} 3. Bb5 {[%clk 0:02:56]}  g6 {[%clk 0:02:54]} 4. Bxc6 {[%clk 0:02:56]}  dxc6 {[%clk 0:02:54]} 5. f4 {[%clk 0:02:56]}  Bg7 {[%clk 0:02:54]} 6. Nf3 {[%clk 0:02:57]}  Nf6 {[%clk 0:02:43]} 7. d3 {[%clk 0:02:57]}  O-O {[%clk 0:02:42]} 8. O-O {[%clk 0:02:57]}  b6 {[%clk 0:02:23]} 9. Kh1 {[%clk 0:02:54]}  Ba6 {[%clk 0:02:14]} 10. Ne5 {[%clk 0:02:53]}  Qc7 {[%clk 0:02:12]} 11. Qe2 {[%clk 0:02:27]}  Rfd8 {[%clk 0:01:56]} 12. Be3 {[%clk 0:02:18]}  Nd7 {[%clk 0:01:53]} 13. Nf3 {[%clk 0:02:11]}  Nf8 {[%clk 0:01:53]} 14. Rad1 {[%clk 0:02:08]}  Ne6 {[%clk 0:01:52]} 15. e5 {[%clk 0:02:02]}  Nd4 {[%clk 0:01:50]} 16. Bxd4 {[%clk 0:02:00]}  cxd4 {[%clk 0:01:51]} 17. Ne4 {[%clk 0:02:01]}  c5 {[%clk 0:01:45]} 18. b3 {[%clk 0:02:00]}  Bb7 {[%clk 0:01:45]} 19. a4 {[%clk 0:01:58]}  f6 {[%clk 0:01:34]} 20. exf6 {[%clk 0:01:56]}  exf6 {[%clk 0:01:35]} 21. f5 {[%clk 0:01:54]}  Re8 {[%clk 0:01:28]} 22. Nfd2 {[%clk 0:01:49]}  Qd7 {[%clk 0:01:07]} 23. Qf2 {[%clk 0:01:24]}  g5 {[%clk 0:01:02]} 24. h4 {[%clk 0:01:19]}  h6 {[%clk 0:01:01]} 25. g4 {[%clk 0:01:08]}  Re5 {[%clk 0:00:55]} 26. Rde1 {[%clk 0:01:03]}  Rae8 {[%clk 0:00:54]} 27. Kh2 {[%clk 0:01:03]}  Qc7 {[%clk 0:00:51]} 28. Kh3 {[%clk 0:01:02]}  Kf7 {[%clk 0:00:34]} 29. Re2 {[%clk 0:01:02]}  a6 {[%clk 0:00:26]} 30. h5 {[%clk 0:01:00]}  Bf8 {[%clk 0:00:23]} 31. Rfe1 {[%clk 0:00:57]}  b5 {[%clk 0:00:22]} 32. axb5 {[%clk 0:00:56]}  axb5 {[%clk 0:00:22]} 33. Nf3 {[%clk 0:00:52]}  R5e7 {[%clk 0:00:13]} 34. Nfd2 {[%clk 0:00:51]}  c4 {[%clk 0:00:10]} 35. bxc4 {[%clk 0:00:51]}  bxc4 {[%clk 0:00:11]} 36. dxc4 {[%clk 0:00:47]}  Bxe4 {[%clk 0:00:10]} 37. Nxe4 {[%clk 0:00:44]}  Re5 {[%clk 0:00:05]} 38. Qxd4 {[%clk 0:00:43]}  Rd8 {[%clk 0:00:03]} 39. Qc3 {[%clk 0:00:38]}  Qc6 {[%clk 0:00:02]} 40. Ng3 {[%clk 0:00:34]}  Rxe2 {[%clk 0:00:02]} 41. Rxe2 {[%clk 0:00:35]}  Rd6 {[%clk 0:00:02]} 42. c5 {[%clk 0:00:29]}  Rd8 {[%clk 0:00:02]} 43. Re6 {[%clk 0:00:29]}  Be7 {[%clk 0:00:02]} 44. Rd6 {[%clk 0:00:29]}  Rxd6 {[%clk 0:00:01]} 45. Qb3+ {[%clk 0:00:28]}  Kg7 {[%clk 0:00:01]} 46. cxd6 {[%clk 0:00:28]}  Qxd6 {[%clk 0:00:02]} 47. Qe3 {[%clk 0:00:28]}  Qc7 {[%clk 0:00:01]} 48. c3 {[%clk 0:00:26]}  Qb7 {[%clk 0:00:02]} 49. c4 {[%clk 0:00:24]}  Bd6 {[%clk 0:00:02]} 50. Ne4 {[%clk 0:00:22]}  Be5 {[%clk 0:00:02]} 51. c5 {[%clk 0:00:21]}  Qb1 {[%clk 0:00:02]} 52. Qf3 {[%clk 0:00:20]}  Qc2 {[%clk 0:00:02]} 53. Qg2 {[%clk 0:00:14]}  Qb3+ {[%clk 0:00:01]} 54. Ng3 {[%clk 0:00:13]} 1-0


[Site "https://www.chess.com"]

[Event "Titled Tuesday Blitz April 19 Early 2022"]
[White "Urbina Perez, Juan Antonio"]
[Black "Zakhartsov, Vladimir"]
[WhiteFideId "2217368"]
[BlackFideId "4145097"]
[WhiteElo "2192"]
[BlackElo "2491"]
[Result "0-1"]
[Round "03"]
[TimeControl "180+1"]
[Date "2022.04.19"]
[WhiteClock "0:01:00"]
[BlackClock "0:01:10"]

1. e4 {[%clk 0:03:00]}  c5 {[%clk 0:02:57]} 2. Nf3 {[%clk 0:03:00]}  d6 {[%clk 0:02:58]} 3. Bb5+ {[%clk 0:03:00]}  Nd7 {[%clk 0:02:57]} 4. d4 {[%clk 0:03:00]}  cxd4 {[%clk 0:02:56]} 5. Qxd4 {[%clk 0:03:01]}  a6 {[%clk 0:02:56]} 6. Bxd7+ {[%clk 0:03:01]}  Bxd7 {[%clk 0:02:57]} 7. Nc3 {[%clk 0:03:01]}  e5 {[%clk 0:02:56]} 8. Qd3 {[%clk 0:03:01]}  h6 {[%clk 0:02:56]} 9. Nd2 {[%clk 0:03:00]}  b5 {[%clk 0:02:56]} 10. O-O {[%clk 0:02:59]}  Nf6 {[%clk 0:02:54]} 11. Rd1 {[%clk 0:02:59]}  Be7 {[%clk 0:02:53]} 12. Nf1 {[%clk 0:03:00]}  b4 {[%clk 0:02:49]} 13. Nd5 {[%clk 0:02:58]}  Nxd5 {[%clk 0:02:49]} 14. Qxd5 {[%clk 0:02:58]}  Rc8 {[%clk 0:02:49]} 15. Ne3 {[%clk 0:02:54]}  O-O {[%clk 0:02:46]} 16. Qd3 {[%clk 0:02:53]}  Bb5 {[%clk 0:02:46]} 17. Qd2 {[%clk 0:02:49]}  a5 {[%clk 0:02:44]} 18. Nd5 {[%clk 0:02:42]}  Bg5 {[%clk 0:02:41]} 19. Qe1 {[%clk 0:02:39]}  Rxc2 {[%clk 0:02:34]} 20. Bxg5 {[%clk 0:02:33]}  Qxg5 {[%clk 0:02:32]} 21. b3 {[%clk 0:02:33]}  Rfc8 {[%clk 0:02:28]} 22. g3 {[%clk 0:02:26]}  Re2 {[%clk 0:02:27]} 23. Qf1 {[%clk 0:02:21]}  Rcc2 {[%clk 0:02:25]} 24. h4 {[%clk 0:02:13]}  Qg4 {[%clk 0:02:15]} 25. Qg2 {[%clk 0:01:57]}  Rxf2 {[%clk 0:02:08]} 26. Qxf2 {[%clk 0:01:58]}  Rxf2 {[%clk 0:02:08]} 27. Kxf2 {[%clk 0:01:58]}  Qe2+ {[%clk 0:02:08]} 28. Kg1 {[%clk 0:01:58]}  Qxe4 {[%clk 0:02:09]} 29. Rac1 {[%clk 0:01:49]}  Kh7 {[%clk 0:01:57]} 30. Rd2 {[%clk 0:01:39]}  Bc6 {[%clk 0:01:48]} 31. Rcd1 {[%clk 0:01:33]}  Bb7 {[%clk 0:01:38]} 32. Kf2 {[%clk 0:01:32]}  Qf5+ {[%clk 0:01:29]} 33. Kg1 {[%clk 0:01:31]}  Qf3 {[%clk 0:01:27]} 34. Kh2 {[%clk 0:01:29]}  Bc6 {[%clk 0:01:20]} 35. Kh3 {[%clk 0:01:20]}  f5 {[%clk 0:01:19]} 36. Kh2 {[%clk 0:01:17]}  Bb7 {[%clk 0:01:17]} 37. Ne7 {[%clk 0:01:07]}  Be4 {[%clk 0:01:13]} 38. Nd5 {[%clk 0:01:02]}  f4 {[%clk 0:01:11]} 39. gxf4 {[%clk 0:01:01]}  exf4 {[%clk 0:01:11]} 40. Rg1 {[%clk 0:01:00]}  Bxd5 {[%clk 0:01:10]} 0-1


[Site "https://www.chess.com"]

[Event "Titled Tuesday Blitz April 19 Early 2022"]
[White "Vetokhin, Ilia"]
[Black "Yang, Kaiqi"]
[WhiteFideId "24156078"]
[BlackFideId "8604398"]
[WhiteElo "1897"]
[BlackElo "2373"]
[Result "1/2-1/2"]
[Round "03"]
[TimeControl "180+1"]
[Date "2022.04.19"]
[WhiteClock "0:00:05"]
[BlackClock "0:00:11"]

1. d4 {[%clk 0:02:59]}  e6 {[%clk 0:02:59]} 2. c4 {[%clk 0:03:00]}  f5 {[%clk 0:02:59]} 3. g3 {[%clk 0:03:00]}  Nf6 {[%clk 0:03:00]} 4. Bg2 {[%clk 0:03:00]}  d5 {[%clk 0:03:00]} 5. Nf3 {[%clk 0:03:01]}  c6 {[%clk 0:03:00]} 6. O-O {[%clk 0:03:01]}  Bd6 {[%clk 0:03:01]} 7. Nc3 {[%clk 0:03:01]}  O-O {[%clk 0:03:00]} 8. Qc2 {[%clk 0:03:01]}  Qe7 {[%clk 0:02:57]} 9. Rb1 {[%clk 0:02:58]}  a5 {[%clk 0:02:52]} 10. a3 {[%clk 0:02:57]}  Ne4 {[%clk 0:02:52]} 11. c5 {[%clk 0:02:49]}  Bc7 {[%clk 0:02:49]} 12. Bf4 {[%clk 0:02:49]}  Bxf4 {[%clk 0:02:43]} 13. gxf4 {[%clk 0:02:50]}  Nd7 {[%clk 0:02:37]} 14. b4 {[%clk 0:02:48]}  axb4 {[%clk 0:02:34]} 15. axb4 {[%clk 0:02:49]}  Kh8 {[%clk 0:02:16]} 16. Ne5 {[%clk 0:02:32]}  Nxe5 {[%clk 0:02:14]} 17. fxe5 {[%clk 0:02:32]}  Nxc3 {[%clk 0:02:10]} 18. Qxc3 {[%clk 0:02:31]}  f4 {[%clk 0:02:11]} 19. Ra1 {[%clk 0:02:17]}  Bd7 {[%clk 0:02:09]} 20. Rxa8 {[%clk 0:02:16]}  Rxa8 {[%clk 0:02:10]} 21. Ra1 {[%clk 0:02:15]}  Qd8 {[%clk 0:02:00]} 22. Ra3 {[%clk 0:01:57]}  h6 {[%clk 0:01:46]} 23. Qa1 {[%clk 0:01:56]}  Rxa3 {[%clk 0:01:45]} 24. Qxa3 {[%clk 0:01:57]}  Qb8 {[%clk 0:01:37]} 25. Qa5 {[%clk 0:01:49]}  g5 {[%clk 0:01:29]} 26. e3 {[%clk 0:00:56]}  fxe3 {[%clk 0:01:28]} 27. fxe3 {[%clk 0:00:57]}  Kg7 {[%clk 0:01:28]} 28. Qb6 {[%clk 0:00:37]}  Be8 {[%clk 0:01:20]} 29. Bh3 {[%clk 0:00:33]}  Qc8 {[%clk 0:01:04]} 30. Qa7 {[%clk 0:00:23]}  Bf7 {[%clk 0:00:56]} 31. Qa5 {[%clk 0:00:19]}  h5 {[%clk 0:00:52]} 32. Bf1 {[%clk 0:00:17]}  Bg6 {[%clk 0:00:41]} 33. b5 {[%clk 0:00:13]}  g4 {[%clk 0:00:35]} 34. Qb6 {[%clk 0:00:12]}  Kh6 {[%clk 0:00:28]} 35. bxc6 {[%clk 0:00:12]}  bxc6 {[%clk 0:00:29]} 36. Ba6 {[%clk 0:00:12]}  Qe8 {[%clk 0:00:23]} 37. Bb7 {[%clk 0:00:05]}  Qf7 {[%clk 0:00:21]} 38. Qb2 {[%clk 0:00:05]}  Qf3 {[%clk 0:00:20]} 39. Qf2 {[%clk 0:00:05]}  Qd1+ {[%clk 0:00:20]} 40. Qf1 {[%clk 0:00:05]}  Qd2 {[%clk 0:00:20]} 41. Qf2 {[%clk 0:00:05]}  Qc1+ {[%clk 0:00:21]} 42. Kg2 {[%clk 0:00:04]}  Be4+ {[%clk 0:00:20]} 43. Kg3 {[%clk 0:00:04]}  Qh1 {[%clk 0:00:11]} 44. Qf6+ {[%clk 0:00:04]}  Bg6 {[%clk 0:00:10]} 45. Qh8+ {[%clk 0:00:04]}  Kg5 {[%clk 0:00:10]} 46. Qf6+ {[%clk 0:00:05]}  Kh6 {[%clk 0:00:10]} 47. Qh8+ {[%clk 0:00:05]}  Kg5 {[%clk 0:00:11]} 48. Qf6+ {[%clk 0:00:05]}  Kh6 {[%clk 0:00:11]} 1/2-1/2


[Site "https://www.chess.com"]

[Event "Titled Tuesday Blitz April 19 Early 2022"]
[White "Vidonyak, Roman"]
[Black "Legenia, Artem"]
[WhiteFideId "14100622"]
[BlackFideId "14136945"]
[WhiteElo "2462"]
[BlackElo "1936"]
[Result "0-1"]
[Round "03"]
[TimeControl "180+1"]
[Date "2022.04.19"]
[WhiteClock "0:00:02"]
[BlackClock "0:00:17"]

1. d4 {[%clk 0:03:00]}  b6 {[%clk 0:02:52]} 2. c4 {[%clk 0:03:00]}  Nf6 {[%clk 0:02:51]} 3. d5 {[%clk 0:02:56]}  Bb7 {[%clk 0:02:51]} 4. Nc3 {[%clk 0:02:55]}  e5 {[%clk 0:02:51]} 5. a3 {[%clk 0:02:54]}  d6 {[%clk 0:02:50]} 6. e4 {[%clk 0:02:54]}  Nbd7 {[%clk 0:02:50]} 7. Be3 {[%clk 0:02:53]}  a6 {[%clk 0:02:50]} 8. Be2 {[%clk 0:02:50]}  g6 {[%clk 0:02:49]} 9. h3 {[%clk 0:02:49]}  Bg7 {[%clk 0:02:49]} 10. Nf3 {[%clk 0:02:49]}  O-O {[%clk 0:02:49]} 11. Qc2 {[%clk 0:02:44]}  Nh5 {[%clk 0:02:42]} 12. g3 {[%clk 0:02:31]}  Bh8 {[%clk 0:02:22]} 13. O-O {[%clk 0:02:24]}  Ng7 {[%clk 0:02:20]} 14. g4 {[%clk 0:02:19]}  f5 {[%clk 0:02:20]} 15. Bg5 {[%clk 0:02:13]}  Qe8 {[%clk 0:02:16]} 16. exf5 {[%clk 0:02:05]}  gxf5 {[%clk 0:02:15]} 17. gxf5 {[%clk 0:02:01]}  Nxf5 {[%clk 0:02:15]} 18. Kh1 {[%clk 0:01:58]}  Bg7 {[%clk 0:01:56]} 19. Rg1 {[%clk 0:01:57]}  Kh8 {[%clk 0:01:56]} 20. Bd3 {[%clk 0:01:48]}  Qf7 {[%clk 0:01:56]} 21. Nh2 {[%clk 0:01:37]}  Nc5 {[%clk 0:01:56]} 22. Ng4 {[%clk 0:01:26]}  Nd4 {[%clk 0:01:37]} 23. Qd1 {[%clk 0:01:15]}  Nxd3 {[%clk 0:01:33]} 24. Qxd3 {[%clk 0:01:14]}  Qf5 {[%clk 0:01:18]} 25. Ne4 {[%clk 0:01:11]}  c6 {[%clk 0:01:14]} 26. Nh6 {[%clk 0:00:42]}  Bxh6 {[%clk 0:01:11]} 27. Bxh6 {[%clk 0:00:43]}  Rf7 {[%clk 0:00:57]} 28. Ng5 {[%clk 0:00:40]}  Rd7 {[%clk 0:00:49]} 29. Qg3 {[%clk 0:00:31]}  cxd5 {[%clk 0:00:41]} 30. cxd5 {[%clk 0:00:09]}  Bxd5+ {[%clk 0:00:41]} 31. Kh2 {[%clk 0:00:10]}  Rg8 {[%clk 0:00:38]} 32. h4 {[%clk 0:00:10]}  Rxg5 {[%clk 0:00:32]} 33. Bxg5 {[%clk 0:00:09]}  Nf3+ {[%clk 0:00:32]} 34. Kg2 {[%clk 0:00:04]}  Nxg5+ {[%clk 0:00:19]} 35. Kf1 {[%clk 0:00:03]}  Bc4+ {[%clk 0:00:18]} 36. Ke1 {[%clk 0:00:03]}  Nf3+ {[%clk 0:00:17]} 37. Kd1 {[%clk 0:00:02]}  Qd3+ {[%clk 0:00:17]} 0-1


[Site "https://www.chess.com"]

[Event "Titled Tuesday Blitz April 19 Early 2022"]
[White "Vokarev, Sergey"]
[Black "Le, Tuan Minh"]
[WhiteFideId "4119711"]
[BlackFideId "12401153"]
[WhiteElo "2343"]
[BlackElo "2450"]
[Result "0-1"]
[Round "03"]
[TimeControl "180+1"]
[Date "2022.04.19"]
[WhiteClock "0:00:04"]
[BlackClock "0:00:48"]

1. e4 {[%clk 0:02:52]}  c5 {[%clk 0:02:59]} 2. Nf3 {[%clk 0:02:52]}  Nf6 {[%clk 0:03:00]} 3. e5 {[%clk 0:02:52]}  Nd5 {[%clk 0:03:00]} 4. g3 {[%clk 0:02:53]}  Nc6 {[%clk 0:03:00]} 5. Bg2 {[%clk 0:02:53]}  g6 {[%clk 0:03:01]} 6. O-O {[%clk 0:02:52]}  Bg7 {[%clk 0:03:01]} 7. Re1 {[%clk 0:02:53]}  O-O {[%clk 0:03:02]} 8. c4 {[%clk 0:02:51]}  Nc7 {[%clk 0:03:01]} 9. Nc3 {[%clk 0:02:50]}  Ne6 {[%clk 0:02:59]} 10. d3 {[%clk 0:02:46]}  b6 {[%clk 0:02:57]} 11. h4 {[%clk 0:02:44]}  Bb7 {[%clk 0:02:56]} 12. h5 {[%clk 0:02:43]}  d6 {[%clk 0:02:51]} 13. exd6 {[%clk 0:02:30]}  Qxd6 {[%clk 0:02:49]} 14. Ne4 {[%clk 0:02:26]}  Qd7 {[%clk 0:02:40]} 15. hxg6 {[%clk 0:02:21]}  hxg6 {[%clk 0:02:39]} 16. Bh3 {[%clk 0:02:21]}  f5 {[%clk 0:02:35]} 17. Neg5 {[%clk 0:02:18]}  Nxg5 {[%clk 0:02:33]} 18. Bxg5 {[%clk 0:02:14]}  e5 {[%clk 0:02:24]} 19. Bg2 {[%clk 0:02:07]}  Rae8 {[%clk 0:02:17]} 20. Nh4 {[%clk 0:02:06]}  Kh7 {[%clk 0:02:09]} 21. Kh2 {[%clk 0:02:03]}  Nd4 {[%clk 0:02:05]} 22. Rh1 {[%clk 0:02:00]}  Bxg2 {[%clk 0:02:04]} 23. Kxg2 {[%clk 0:01:57]}  Qc6+ {[%clk 0:02:05]} 24. Kg1 {[%clk 0:01:47]}  Kg8 {[%clk 0:02:04]} 25. Be3 {[%clk 0:01:46]}  Rd8 {[%clk 0:01:49]} 26. Bxd4 {[%clk 0:01:42]}  Rxd4 {[%clk 0:01:50]} 27. Qe2 {[%clk 0:01:42]}  Rfd8 {[%clk 0:01:48]} 28. Ng2 {[%clk 0:00:57]}  Rxd3 {[%clk 0:01:26]} 29. Ne3 {[%clk 0:00:57]}  Rd2 {[%clk 0:01:27]} 30. Qf1 {[%clk 0:00:57]}  Qf3 {[%clk 0:01:22]} 31. b3 {[%clk 0:00:49]}  e4 {[%clk 0:01:16]} 32. Re1 {[%clk 0:00:46]}  R8d3 {[%clk 0:01:17]} 33. Nd5 {[%clk 0:00:45]}  Qxg3+ {[%clk 0:01:12]} 34. Qg2 {[%clk 0:00:41]}  Bd4 {[%clk 0:01:04]} 35. Ne7+ {[%clk 0:00:15]}  Kg7 {[%clk 0:00:48]} 36. Qxg3 {[%clk 0:00:04]}  Rxg3+ {[%clk 0:00:48]} 37. Kh2 {[%clk 0:00:04]} 0-1


[Site "https://www.chess.com"]

[Event "Titled Tuesday Blitz April 19 Early 2022"]
[White "Vokhidov, Shamsiddin"]
[Black "Nazari, Arad"]
[WhiteFideId "14204223"]
[BlackFideId "12577324"]
[WhiteElo "2611"]
[BlackElo "2129"]
[Result "1-0"]
[Round "03"]
[TimeControl "180+1"]
[Date "2022.04.19"]
[WhiteClock "0:00:07"]
[BlackClock "0:00:03"]

1. e4 {[%clk 0:03:00]}  c5 {[%clk 0:02:58]} 2. Nf3 {[%clk 0:03:01]}  d6 {[%clk 0:02:58]} 3. d4 {[%clk 0:03:01]}  cxd4 {[%clk 0:02:59]} 4. Nxd4 {[%clk 0:03:02]}  Nf6 {[%clk 0:02:58]} 5. Nc3 {[%clk 0:03:02]}  a6 {[%clk 0:02:59]} 6. Bd3 {[%clk 0:03:02]}  e5 {[%clk 0:02:56]} 7. Nde2 {[%clk 0:03:03]}  Be7 {[%clk 0:02:54]} 8. O-O {[%clk 0:03:04]}  O-O {[%clk 0:02:54]} 9. Ng3 {[%clk 0:03:04]}  Be6 {[%clk 0:02:54]} 10. Nd5 {[%clk 0:03:04]}  Bxd5 {[%clk 0:02:47]} 11. exd5 {[%clk 0:03:05]}  Nbd7 {[%clk 0:02:47]} 12. Nf5 {[%clk 0:03:05]}  g6 {[%clk 0:02:37]} 13. Nxe7+ {[%clk 0:02:55]}  Qxe7 {[%clk 0:02:38]} 14. c4 {[%clk 0:02:56]}  a5 {[%clk 0:02:27]} 15. b3 {[%clk 0:02:54]}  Nh5 {[%clk 0:02:20]} 16. Be2 {[%clk 0:02:38]}  Nf4 {[%clk 0:02:17]} 17. Bf3 {[%clk 0:02:34]}  f5 {[%clk 0:02:13]} 18. Re1 {[%clk 0:02:28]}  g5 {[%clk 0:02:09]} 19. g3 {[%clk 0:02:04]}  Nh3+ {[%clk 0:01:50]} 20. Kf1 {[%clk 0:02:03]}  g4 {[%clk 0:01:25]} 21. Bg2 {[%clk 0:01:57]}  Ng5 {[%clk 0:01:19]} 22. a3 {[%clk 0:01:29]}  e4 {[%clk 0:01:18]} 23. Bxg5 {[%clk 0:01:23]}  Qxg5 {[%clk 0:01:17]} 24. b4 {[%clk 0:01:24]}  b6 {[%clk 0:01:17]} 25. Qd4 {[%clk 0:01:23]}  Qg7 {[%clk 0:01:13]} 26. Qd2 {[%clk 0:01:09]}  Rfc8 {[%clk 0:01:10]} 27. Rac1 {[%clk 0:01:06]}  Rc7 {[%clk 0:00:58]} 28. Qf4 {[%clk 0:00:51]}  Qg6 {[%clk 0:00:47]} 29. h3 {[%clk 0:00:44]}  h5 {[%clk 0:00:45]} 30. hxg4 {[%clk 0:00:44]}  hxg4 {[%clk 0:00:45]} 31. Rc3 {[%clk 0:00:29]}  axb4 {[%clk 0:00:38]} 32. axb4 {[%clk 0:00:29]}  Rac8 {[%clk 0:00:38]} 33. Rec1 {[%clk 0:00:29]}  Ne5 {[%clk 0:00:39]} 34. c5 {[%clk 0:00:25]}  bxc5 {[%clk 0:00:38]} 35. bxc5 {[%clk 0:00:26]}  Nd3 {[%clk 0:00:38]} 36. Rxd3 {[%clk 0:00:25]}  exd3 {[%clk 0:00:39]} 37. c6 {[%clk 0:00:25]}  Re8 {[%clk 0:00:31]} 38. Rd1 {[%clk 0:00:24]}  Qf6 {[%clk 0:00:27]} 39. Kg1 {[%clk 0:00:22]}  Re5 {[%clk 0:00:18]} 40. Qd2 {[%clk 0:00:14]}  Rce7 {[%clk 0:00:16]} 41. Bf1 {[%clk 0:00:13]}  Re2 {[%clk 0:00:15]} 42. Qxd3 {[%clk 0:00:12]}  Re1 {[%clk 0:00:14]} 43. c7 {[%clk 0:00:12]}  Rxf1+ {[%clk 0:00:13]} 44. Rxf1 {[%clk 0:00:11]}  Rxc7 {[%clk 0:00:13]} 45. Re1 {[%clk 0:00:11]}  Rf7 {[%clk 0:00:05]} 46. Re6 {[%clk 0:00:11]}  Qd8 {[%clk 0:00:05]} 47. Qd4 {[%clk 0:00:11]}  Qd7 {[%clk 0:00:04]} 48. Qf4 {[%clk 0:00:10]}  Rg7 {[%clk 0:00:01]} 49. Rxd6 {[%clk 0:00:10]}  Qf7 {[%clk 0:00:01]} 50. Re6 {[%clk 0:00:09]}  Qd7 {[%clk 0:00:01]} 51. Qxf5 {[%clk 0:00:09]}  Rf7 {[%clk 0:00:02]} 52. Qxg4+ {[%clk 0:00:08]}  Kf8 {[%clk 0:00:02]} 53. Qg5 {[%clk 0:00:07]}  Qc7 {[%clk 0:00:02]} 54. Qh6+ {[%clk 0:00:07]}  Kg8 {[%clk 0:00:03]} 55. Re8+ {[%clk 0:00:07]} 1-0


[Site "https://www.chess.com"]

[Event "Titled Tuesday Blitz April 19 Early 2022"]
[White "Wieczorek, Oskar"]
[Black "Sadovsky, Artem"]
[WhiteFideId "1133950"]
[BlackFideId "4155840"]
[WhiteElo "2319"]
[BlackElo "2314"]
[Result "1-0"]
[Round "03"]
[TimeControl "180+1"]
[Date "2022.04.19"]
[WhiteClock "0:00:47"]
[BlackClock "0:00:02"]

1. e4 {[%clk 0:02:42]}  g6 {[%clk 0:03:00]} 2. h4 {[%clk 0:02:42]}  h5 {[%clk 0:02:41]} 3. d4 {[%clk 0:02:41]}  Bg7 {[%clk 0:02:30]} 4. Nc3 {[%clk 0:02:42]}  c6 {[%clk 0:02:11]} 5. Bc4 {[%clk 0:02:36]}  d5 {[%clk 0:01:57]} 6. exd5 {[%clk 0:02:36]}  b5 {[%clk 0:01:54]} 7. Bb3 {[%clk 0:02:36]}  b4 {[%clk 0:01:51]} 8. Na4 {[%clk 0:02:34]}  cxd5 {[%clk 0:01:51]} 9. Nc5 {[%clk 0:02:34]}  Nf6 {[%clk 0:01:42]} 10. Nh3 {[%clk 0:02:33]}  a5 {[%clk 0:01:36]} 11. Ng5 {[%clk 0:02:32]}  O-O {[%clk 0:01:34]} 12. Bf4 {[%clk 0:02:30]}  Nc6 {[%clk 0:01:25]} 13. Qd2 {[%clk 0:02:27]}  Ne4 {[%clk 0:01:04]} 14. Ncxe4 {[%clk 0:02:25]}  dxe4 {[%clk 0:01:05]} 15. c3 {[%clk 0:02:13]}  a4 {[%clk 0:01:00]} 16. Bxf7+ {[%clk 0:01:58]}  Rxf7 {[%clk 0:00:44]} 17. Nxf7 {[%clk 0:01:59]}  Kxf7 {[%clk 0:00:45]} 18. O-O {[%clk 0:01:56]}  a3 {[%clk 0:00:31]} 19. Rad1 {[%clk 0:01:46]}  axb2 {[%clk 0:00:29]} 20. Qxb2 {[%clk 0:01:47]}  bxc3 {[%clk 0:00:28]} 21. Qxc3 {[%clk 0:01:47]}  Qd5 {[%clk 0:00:29]} 22. Be3 {[%clk 0:01:35]}  Rxa2 {[%clk 0:00:20]} 23. Rc1 {[%clk 0:01:35]}  Bd7 {[%clk 0:00:12]} 24. Rfd1 {[%clk 0:01:34]}  Ra4 {[%clk 0:00:10]} 25. Qd2 {[%clk 0:01:21]}  Ra2 {[%clk 0:00:08]} 26. Qe1 {[%clk 0:01:20]}  Bg4 {[%clk 0:00:08]} 27. Rc5 {[%clk 0:01:19]}  Qd6 {[%clk 0:00:06]} 28. d5 {[%clk 0:00:55]}  Ne5 {[%clk 0:00:02]} 29. f3 {[%clk 0:00:47]} 1-0


[Site "https://www.chess.com"]